[Event "POL-chT 2 Liga 2019"]
[Site "Poronin"]
[Date "2019.09.14"]
[Round "8.5"]
[White "Mika, Tomasz"]
[Black "Dudzinski, Pawel"]
[Result "0-1"]
[ECO "A40"]
[WhiteElo "2136"]
[BlackElo "2194"]
[Annotator "NA"]
[PlyCount "104"]
[EventDate "2019.09.07"]
[EventType "team-tourn"]
[EventCountry "POL"]
[SourceTitle "playchess.com"]
[Source "ChessBase"]
[SourceQuality "1"]
[TimeControl "40/5400+30:1800+30"]

1. d4 {[%emt 0:00:00]} c6 {[%emt 0:00:06]} 2. Nc3 {[%emt 0:01:50]} d5 {[%emt 0:01:17]} 3. Bf4 {[%emt 0:00:25]} Nf6 {[%emt 0:02:18]} 4. e3 {[%emt 0:00:14]} Bf5 {[%emt 0:00:36]} 5. f3 {[%emt 0:00:13]} e6 {[%emt 0:01:26]} 6. g4 {[%emt 0:00:33]} Bg6 {[%emt 0:00:37]} 7. h4 {[%emt 0:00:07]} h5 {[%emt 0:04:44]} 8. g5 {[%emt 0:00:15]} Ng8 {[%emt 0:00:31]} 9. Bd3 {[%emt 0:00:56]} Ne7 {[%emt 0:03:16]} 10. Nge2 {[%emt 0:01:34]} Bxd3 {[%emt 0:02:36]} 11. Qxd3 {[%emt 0:00:14]} Ng6 {[%emt 0:02:08]} 12. Bg3 {[%emt 0:03:56]} Bd6 {[%emt 0:00:46]} 13. Bxd6 {[%emt 0:01:50]} Qxd6 {[%emt 0:00:02]} 14. O-O-O {[%emt 0:01:13]} Nd7 {[%emt 0:02:54]} 15. e4 {[%emt 0:06:02]} O-O-O {[%emt 0:05:55]} 16. Kb1 {[%emt 0:04:01]} Kb8 {[%emt 0:01:36]} 17. f4 {[%emt 0:07:53]} Nb6 {[%emt 0:30:44]} 18. f5 {[%emt 0:05:43]} exf5 {[%emt 0:00:58]} 19. exf5 {[%emt 0:00:44]} Ne7 {[%emt 0:02:42]} 20. Rhe1 {[%emt 0:07:07]} g6 {[%emt 0:03:43]} 21. Ng3 {[%emt 0:04:13]} Qd7 {[%emt 0:13:00]} 22. Qf3 {[%emt 0:05:05]} Nxf5 {[%emt 0:02:57]} 23. Nxf5 {[%emt 0:00:02]} Qxf5 {[%emt 0:00:07]} 24. Qxf5 {[%emt 0:00:10]} gxf5 {[%emt 0:00:01]} 25. Re7 {[%emt 0:06:10]} Rhf8 {[%emt 0:02:05]} 26. Rf1 {[%emt 0:13:13]} Nc8 {[%emt 0:00:35]} 27. Re3 {[%emt 0:04:22]} Nd6 {[%emt 0:00:18]} 28. Kc1 {[%emt 0:02:35]} Rde8 {[%emt 0:00:44]} 29. Re5 {[%emt 0:00:13]} Nc4 {[%emt 0:01:27]} 30. Re2 {[%emt 0:05:20]} Nd6 {[%emt 0:00:46]} 31. Re5 {[%emt 0:01:13]} Nc4 {[%emt 0:00:05]} 32. Re2 {[%emt 0:04:26]} Nd6 {[%emt 0:04:17]} 33. Rf3 {[%emt 0:01:34]} Kc7 {[%emt 0:00:33]} 34. Re5 {[%emt 0:00:13]} Kd7 {[%emt 0:01:14]} 35. Ne2 {[%emt 0:00:43]} f6 {[%emt 0:01:49]} 36. Rxe8 {[%emt 0:00:19]} Rxe8 {[%emt 0:00:05]} 37. Nf4 {[%emt 0:01:03]} fxg5 {[%emt 0:01:29]} 38. hxg5 {[%emt 0:00:02]} Re1+ {[%emt 0:02:15]} 39. Kd2 {[%emt 0:00:11]} Rg1 {[%emt 0:00:24]} 40. g6 {[%emt 0:00:00]} h4 {[%emt 0:00:00]} 41. Rh3 {[%emt 0:09:28]} Rg4 {[%emt 0:05:48]} 42. Nd3 {[%emt 0:14:31]} Ke7 {[%emt 0:09:14]} 43. c3 {[%emt 0:01:34]} Kf6 {[%emt 0:02:39]} 44. Ke3 {[%emt 0:03:42]} Kxg6 {[%emt 0:10:17]} 45. Ne5+ {[%emt 0:00:20]} Kg5 {[%emt 0:00:12]} 46. Nxg4 {[%emt 0:00:51]} fxg4 {[%emt 0:00:01]} 47. Rh1 {[%emt 0:00:17]} h3 {[%emt 0:00:32]} 48. Rf1 {[%emt 0:01:49]} h2 {[%emt 0:03:55]} 49. Kf2 {[%emt 0:01:29]} Ne4+ {[%emt 0:02:10]} 50. Kg2 {[%emt 0:00:10]} g3 {[%emt 0:00:12]} 51. Rf3 {[%emt 0:01:58]} Kg4 {[%emt 0:01:18]} 52. b3 {[%emt 0:01:40]} h1=B+ {[%emt 0:00:09]} 0-1

[Event "POL-chT 2 Liga 2019"]
[Site "Poronin"]
[Date "2019.09.14"]
[Round "8.6"]
[White "Czerwinska, Milena"]
[Black "Swiech, Joanna"]
[Result "1/2-1/2"]
[ECO "C45"]
[WhiteElo "2006"]
[BlackElo "2055"]
[Annotator "NA"]
[PlyCount "94"]
[EventDate "2019.09.07"]
[EventType "team-tourn"]
[EventCountry "POL"]
[SourceTitle "playchess.com"]
[Source "ChessBase"]
[SourceQuality "1"]
[TimeControl "40/5400+30:1800+30"]

1. e4 {[%emt 0:00:00]} e5 {[%emt 0:00:00]} 2. Nf3 {[%emt 0:00:00]} Nc6 {[%emt 0:00:00]} 3. d4 {[%emt 0:00:00]} exd4 {[%emt 0:00:00]} 4. Nxd4 {[%emt 0:00:00]} Nf6 {[%emt 0:00:00]} 5. Nxc6 {[%emt 0:00:24]} bxc6 {[%emt 0:00:06]} 6. e5 {[%emt 0:00:05]} Qe7 {[%emt 0:00:25]} 7. Qe2 {[%emt 0:00:04]} Nd5 {[%emt 0:00:07]} 8. c4 {[%emt 0:00:18]} Ba6 {[%emt 0:00:07]} 9. Nd2 {[%emt 0:00:35]} g6 {[%emt 0:00:26]} 10. Nf3 {[%emt 0:01:39]} Bg7 {[%emt 0:00:22]} 11. Bg5 {[%emt 0:03:43]} Qb4+ {[%emt 0:00:38]} 12. Qd2 {[%emt 0:05:59]} Qxd2+ {[%emt 0:00:42]} 13. Bxd2 {[%emt 0:05:33]} Nb6 {[%emt 0:01:09]} 14. b3 {[%emt 0:06:38]} O-O {[%emt 0:06:31]} 15. O-O-O {[%emt 0:04:26]} Rfe8 {[%emt 0:02:56]} 16. Re1 {[%emt 0:09:07]} c5 {[%emt 0:06:43]} 17. Bd3 {[%emt 0:08:46]} Bb7 {[%emt 0:26:49]} 18. Be4 {[%emt 0:04:11]} Bxe4 {[%emt 0:00:59]} 19. Rxe4 {[%emt 0:00:08]} Re7 {[%emt 0:01:36]} 20. Ree1 {[%emt 0:03:06]} Rae8 {[%emt 0:01:47]} 21. Bf4 {[%emt 0:03:27]} a5 {[%emt 0:04:43]} 22. a4 {[%emt 0:06:38]} h6 {[%emt 0:01:25]} 23. h4 {[%emt 0:01:08]} Re6 {[%emt 0:04:36]} 24. Kd1 {[%emt 0:08:13]} Nc8 {[%emt 0:08:32]} 25. Bd2 {[%emt 0:03:33]} Ra6 {[%emt 0:05:23]} 26. Kc2 {[%emt 0:08:16]} Na7 {[%emt 0:02:27]} 27. Bc3 {[%emt 0:04:22]} Nc6 {[%emt 0:06:52]} 28. Rd1 {[%emt 0:00:40]} d6 {[%emt 0:02:31]} 29. exd6 {[%emt 0:01:27]} cxd6 {[%emt 0:00:07]} 30. Bxg7 {[%emt 0:01:40]} Kxg7 {[%emt 0:00:09]} 31. Rhe1 {[%emt 0:01:47]} Re6 {[%emt 0:04:12]} 32. Kc3 {[%emt 0:01:22]} Kf6 {[%emt 0:01:17]} 33. Rxe6+ {[%emt 0:03:59]} Kxe6 {[%emt 0:00:18]} 34. Re1+ {[%emt 0:00:28]} Kd7 {[%emt 0:00:27]} 35. Re2 {[%emt 0:01:44]} Ra8 {[%emt 0:01:21]} 36. Re4 {[%emt 0:02:10]} Re8 {[%emt 0:03:00]} 37. Rxe8 {[%emt 0:00:39]} Kxe8 {[%emt 0:00:05]} 38. Kd3 {[%emt 0:01:38]} Ke7 {[%emt 0:00:20]} 39. Ke4 {[%emt 0:00:34]} f5+ {[%emt 0:00:31]} 40. Ke3 {[%emt 0:00:00]} Ke6 {[%emt 0:00:00]} 41. g3 {[%emt 0:03:56]} Kf6 {[%emt 0:10:58]} 42. Kd3 {[%emt 0:11:55]} Ne5+ {[%emt 0:04:35]} 43. Ke3 {[%emt 0:00:40]} Nxf3 {[%emt 0:02:56]} 44. Kxf3 {[%emt 0:00:04]} Ke5 {[%emt 0:00:29]} 45. Ke3 {[%emt 0:04:00]} g5 {[%emt 0:03:13]} 46. hxg5 {[%emt 0:00:23]} hxg5 {[%emt 0:00:06]} 47. f4+ {[%emt 0:02:10]} gxf4+ {[%emt 0:00:25]} 1/2-1/2

[Event "POL-chT 2 Liga 2019"]
[Site "Poronin"]
[Date "2019.09.14"]
[Round "8.7"]
[White "Oglaza, Oskar"]
[Black "Stachowiak, Kamil"]
[Result "1-0"]
[ECO "B38"]
[WhiteElo "2351"]
[BlackElo "2444"]
[Annotator "NA"]
[PlyCount "101"]
[EventDate "2019.09.07"]
[EventType "team-tourn"]
[EventCountry "POL"]
[SourceTitle "playchess.com"]
[Source "ChessBase"]
[SourceQuality "1"]
[TimeControl "40/5400+30:1800+30"]

1. e4 c5 {[%emt 0:00:00]} 2. Nf3 {[%emt 0:00:00]} Nc6 {[%emt 0:00:20]} 3. d4 {[%emt 0:00:00]} cxd4 {[%emt 0:00:07]} 4. Nxd4 {[%emt 0:00:00]} g6 {[%emt 0:00:25]} 5. c4 {[%emt 0:00:00]} Bg7 {[%emt 0:00:12]} 6. Be3 {[%emt 0:00:00]} Nf6 {[%emt 0:00:29]} 7. Nc3 {[%emt 0:00:04]} d6 {[%emt 0:00:20]} 8. Be2 {[%emt 0:00:10]} Bd7 {[%emt 0:00:26]} 9. O-O {[%emt 0:00:34]} O-O {[%emt 0:00:33]} 10. Qd2 {[%emt 0:00:18]} Nxd4 {[%emt 0:00:44]} 11. Bxd4 {[%emt 0:00:05]} a5 {[%emt 0:00:20]} 12. b3 {[%emt 0:00:05]} Bc6 {[%emt 0:00:12]} 13. f3 {[%emt 0:00:04]} Nd7 {[%emt 0:00:35]} 14. Be3 {[%emt 0:00:19]} Nc5 {[%emt 0:00:14]} 15. Rab1 {[%emt 0:01:32]} e6 {[%emt 0:05:52]} 16. Rfd1 {[%emt 0:16:15]} Be5 {[%emt 0:00:30]} 17. Bd4 {[%emt 0:07:21]} Qe7 {[%emt 0:08:03]} 18. a3 {[%emt 0:18:04]} a4 {[%emt 0:22:55]} 19. Bxe5 {[%emt 0:00:18]} dxe5 {[%emt 0:00:10]} 20. b4 {[%emt 0:00:05]} Nb3 {[%emt 0:00:22]} 21. Qe3 {[%emt 0:00:13]} Nd4 {[%emt 0:01:57]} 22. Rxd4 {[%emt 0:25:13]} exd4 {[%emt 0:00:20]} 23. Qxd4 {[%emt 0:00:02]} Qg5 {[%emt 0:14:32]} 24. Kf2 {[%emt 0:07:41]} Qh4+ {[%emt 0:09:16]} 25. Kg1 {[%emt 0:01:21]} Qg5 {[%emt 0:02:53]} 26. Kf2 {[%emt 0:08:33]} Qh4+ {[%emt 0:02:11]} 27. Kf1 {[%emt 0:05:07]} Qg5 {[%emt 0:11:49]} 28. b5 {[%emt 0:01:53]} Rfd8 {[%emt 0:00:08]} 29. Qf2 {[%emt 0:00:41]} Qd2 {[%emt 0:01:15]} 30. bxc6 {[%emt 0:02:21]} bxc6 {[%emt 0:03:48]} 31. Qe1 {[%emt 0:00:03]} Qe3 {[%emt 0:00:18]} 32. Qc1 {[%emt 0:00:37]} Rd2 {[%emt 0:10:38]} 33. Rb2 {[%emt 0:00:05]} Rad8 {[%emt 0:00:04]} 34. Rxd2 {[%emt 0:00:05]} Qxd2 {[%emt 0:00:10]} 35. Qxd2 {[%emt 0:00:08]} Rxd2 {[%emt 0:00:05]} 36. e5 {[%emt 0:02:00]} Rc2 {[%emt 0:00:43]} 37. Nxa4 {[%emt 0:00:02]} Ra2 {[%emt 0:00:12]} 38. f4 {[%emt 0:01:00]} Rxa3 {[%emt 0:00:12]} 39. Nc5 {[%emt 0:00:03]} h5 {[%emt 0:01:34]} 40. Ke1 {[%emt 0:00:00]} Kf8 {[%emt 0:00:00]} 41. Kd2 {[%emt 0:00:31]} Ra5 {[%emt 0:03:42]} 42. Kc3 {[%emt 0:00:03]} g5 {[%emt 0:01:50]} 43. Bxh5 {[%emt 0:01:48]} gxf4 {[%emt 0:00:09]} 44. Kb4 {[%emt 0:00:02]} Ra1 {[%emt 0:00:51]} 45. Bf3 {[%emt 0:00:09]} Ke7 {[%emt 0:03:02]} 46. Bxc6 {[%emt 0:00:22]} f6 {[%emt 0:00:53]} 47. exf6+ {[%emt 0:00:30]} Kxf6 {[%emt 0:00:02]} 48. Nd3 {[%emt 0:03:11]} Kf5 {[%emt 0:00:32]} 49. c5 {[%emt 0:00:15]} e5 {[%emt 0:00:20]} 50. Bd7+ {[%emt 0:00:55]} Ke4 {[%emt 0:00:31]} 51. Kc4 {[%emt 0:00:05] Kd5+} 1-0

[Event "POL-chT 2 Liga 2019"]
[Site "Poronin"]
[Date "2019.09.14"]
[Round "8.8"]
[White "Dobrowolski, Piotr"]
[Black "Pacan-Milej, Kosma"]
[Result "0-1"]
[ECO "B90"]
[WhiteElo "2415"]
[BlackElo "2287"]
[Annotator "NA"]
[PlyCount "76"]
[EventDate "2019.09.07"]
[EventType "team-tourn"]
[EventCountry "POL"]
[SourceTitle "playchess.com"]
[Source "ChessBase"]
[SourceQuality "1"]
[TimeControl "40/5400+30:1800+30"]

1. e4 {[%emt 0:00:00]} c5 {[%emt 0:00:00]} 2. Nf3 {[%emt 0:00:06]} d6 {[%emt 0:00:00]} 3. d4 {[%emt 0:00:47]} cxd4 {[%emt 0:00:00]} 4. Nxd4 {[%emt 0:00:05]} Nf6 {[%emt 0:00:00]} 5. Nc3 {[%emt 0:00:17]} a6 {[%emt 0:00:00]} 6. Be3 {[%emt 0:01:09]} e5 {[%emt 0:00:00]} 7. Nf3 {[%emt 0:00:25]} Be7 {[%emt 0:00:02]} 8. Bc4 {[%emt 0:00:09]} O-O {[%emt 0:00:06]} 9. O-O {[%emt 0:00:05]} Nc6 {[%emt 0:00:03]} 10. Bb3 {[%emt 0:01:44]} Na5 {[%emt 0:00:22]} 11. Qe2 {[%emt 0:00:29]} Nxb3 {[%emt 0:00:50]} 12. axb3 {[%emt 0:00:14]} h6 {[%emt 0:00:06]} 13. Rfd1 {[%emt 0:03:57]} Qe8 {[%emt 0:00:17]} 14. Nd2 {[%emt 0:05:28]} b5 {[%emt 0:02:09]} 15. Nf1 {[%emt 0:11:09]} b4 {[%emt 0:13:20]} 16. Na4 {[%emt 0:00:15]} Nxe4 {[%emt 0:16:03]} 17. Nb6 {[%emt 0:10:05]} Rb8 {[%emt 0:00:11]} 18. Nxc8 {[%emt 0:01:33]} Rxc8 {[%emt 0:01:42]} 19. Rxa6 {[%emt 0:01:25]} f5 {[%emt 0:02:11]} 20. Ng3 {[%emt 0:11:37]} Nc5 {[%emt 0:01:59]} 21. Bxc5 {[%emt 0:03:46]} Rxc5 {[%emt 0:00:06]} 22. Ra7 {[%emt 0:00:05]} Rf7 {[%emt 0:10:31]} 23. Rda1 {[%emt 0:26:24]} Bf8 {[%emt 0:02:38]} 24. h3 {[%emt 0:06:19]} e4 {[%emt 0:04:21]} 25. Qd2 {[%emt 0:01:50]} Rxa7 {[%emt 0:09:21]} 26. Rxa7 {[%emt 0:00:02]} Qe5 {[%emt 0:00:08]} 27. Ne2 {[%emt 0:07:28]} Rd5 {[%emt 0:06:27]} 28. Qc1 {[%emt 0:00:02]} g5 {[%emt 0:03:14]} 29. g3 {[%emt 0:00:09]} Bg7 {[%emt 0:01:13]} 30. c3 {[%emt 0:00:41]} bxc3 {[%emt 0:03:45]} 31. bxc3 {[%emt 0:02:22]} Rd3 {[%emt 0:00:55]} 32. b4 {[%emt 0:05:06]} e3 {[%emt 0:01:23]} 33. Ra5 {[%emt 0:00:36]} exf2+ {[%emt 0:00:32]} 34. Kxf2 {[%emt 0:00:05]} Qe4 {[%emt 0:00:38]} 35. Ra2 {[%emt 0:00:14]} f4 {[%emt 0:07:43]} 36. gxf4 {[%emt 0:00:21]} Rf3+ {[%emt 0:02:12]} 37. Kg1 {[%emt 0:00:03]} Rxh3 {[%emt 0:00:06]} 38. Kf1 {[%emt 0:00:28]} Qf3+ {[%emt 0:00:40]} 0-1

[Event "POL-chT 2 Liga 2019"]
[Site "Poronin"]
[Date "2019.09.14"]
[Round "8.9"]
[White "Licznerski, Lukasz"]
[Black "Piotrowski, Przemyslaw"]
[Result "1-0"]
[ECO "B58"]
[WhiteElo "2356"]
[BlackElo "2293"]
[Annotator "NA"]
[PlyCount "81"]
[EventDate "2019.09.07"]
[EventType "team-tourn"]
[EventCountry "POL"]
[SourceTitle "playchess.com"]
[Source "ChessBase"]
[SourceQuality "1"]
[TimeControl "40/5400+30:1800+30"]

1. e4 {[%emt 0:00:00]} c5 {[%emt 0:00:00]} 2. Nf3 {[%emt 0:00:00]} Nc6 {[%emt 0:00:00]} 3. d4 {[%emt 0:00:00]} cxd4 {[%emt 0:00:00]} 4. Nxd4 {[%emt 0:00:00]} Nf6 {[%emt 0:00:00]} 5. Nc3 {[%emt 0:00:00]} d6 {[%emt 0:00:13]} 6. Be2 {[%emt 0:00:00]} e5 {[%emt 0:00:06]} 7. Nf3 {[%emt 0:00:02]} h6 {[%emt 0:00:05]} 8. O-O {[%emt 0:00:05]} Be7 {[%emt 0:00:03]} 9. Re1 {[%emt 0:00:16]} Be6 {[%emt 0:01:18]} 10. Bf1 {[%emt 0:02:32]} O-O {[%emt 0:00:08]} 11. h3 {[%emt 0:03:02]} Qa5 {[%emt 0:00:43]} 12. a3 {[%emt 0:04:21]} Rac8 {[%emt 0:01:01]} 13. Rb1 {[%emt 0:00:55]} Qc7 14. b4 {[%emt 0:16:14]} Rfd8 {[%emt 0:30:30]} 15. Nd5 {[%emt 0:00:43]} Bxd5 {[%emt 0:00:09]} 16. exd5 {[%emt 0:00:01]} Nb8 {[%emt 0:00:07]} 17. c4 {[%emt 0:00:10]} b5 {[%emt 0:00:07]} 18. cxb5 {[%emt 0:02:33]} Qb7 {[%emt 0:03:20]} 19. Qb3 {[%emt 0:12:50]} Qxd5 {[%emt 0:25:01]} 20. Be3 {[%emt 0:00:27]} Rd7 {[%emt 0:02:01]} 21. Red1 {[%emt 0:05:34]} Qxb3 {[%emt 0:05:13]} 22. Rxb3 {[%emt 0:00:01]} Bd8 {[%emt 0:01:18]} 23. a4 {[%emt 0:00:43]} Bb6 {[%emt 0:00:21]} 24. Bxb6 {[%emt 0:01:41]} axb6 {[%emt 0:00:04]} 25. a5 {[%emt 0:00:03]} Ne4 {[%emt 0:11:16]} 26. a6 {[%emt 0:07:30]} Nc3 {[%emt 0:01:37]} 27. Ra1 {[%emt 0:00:10]} Ra7 {[%emt 0:00:04]} 28. Kh2 {[%emt 0:04:45]} Rcc7 {[%emt 0:00:41]} 29. Nd2 {[%emt 0:06:23]} d5 {[%emt 0:01:05]} 30. Nc4 {[%emt 0:00:17]} Nxb5 {[%emt 0:04:35]} 31. Nxb6 {[%emt 0:00:10]} Nd4 {[%emt 0:00:19]} 32. Rbb1 {[%emt 0:10:28]} Nxa6 {[%emt 0:05:17]} 33. Nxd5 {[%emt 0:01:00]} Rd7 {[%emt 0:01:35]} 34. Nb6 {[%emt 0:00:22]} Rdc7 {[%emt 0:00:56]} 35. Bxa6 {[%emt 0:01:32]} Rc6 {[%emt 0:00:13]} 36. Nc8 {[%emt 0:00:12]} Raxa6 {[%emt 0:02:41]} 37. Ne7+ {[%emt 0:00:13]} Kf8 {[%emt 0:00:07]} 38. Nxc6 {[%emt 0:00:04]} Rxc6 {[%emt 0:00:08]} 39. Ra5 {[%emt 0:01:35]} f6 {[%emt 0:00:53]} 40. Ra8+ {[%emt 0:00:00]} Kf7 {[%emt 0:00:00]} 41. Rb8 {[%emt 0:04:11]} 1-0

[Event "POL-chT 2 Liga 2019"]
[Site "Poronin"]
[Date "2019.09.14"]
[Round "8.10"]
[White "Fudalej, Michal"]
[Black "Punin, Andrii"]
[Result "0-1"]
[ECO "B48"]
[WhiteElo "2235"]
[BlackElo "2325"]
[Annotator "NA"]
[PlyCount "56"]
[EventDate "2019.09.07"]
[EventType "team-tourn"]
[EventCountry "POL"]
[SourceTitle "playchess.com"]
[Source "ChessBase"]
[SourceQuality "1"]
[TimeControl "40/5400+30:1800+30"]

1. e4 {[%emt 0:00:00]} c5 {[%emt 0:00:00]} 2. Nc3 {[%emt 0:00:43]} e6 {[%emt 0:00:00]} 3. Nf3 {[%emt 0:03:45]} Nc6 {[%emt 0:00:00]} 4. d4 {[%emt 0:00:32]} cxd4 {[%emt 0:00:00]} 5. Nxd4 {[%emt 0:00:03]} Qc7 {[%emt 0:00:41]} 6. Be3 {[%emt 0:03:20]} a6 {[%emt 0:00:08]} 7. f4 {[%emt 0:25:57]} b5 {[%emt 0:01:17]} 8. Nb3 {[%emt 0:02:16]} Nf6 {[%emt 0:01:38]} 9. e5 {[%emt 0:09:23]} b4 {[%emt 0:00:19]} 10. Nb5 {[%emt 0:05:17]} axb5 {[%emt 0:04:55]} 11. exf6 {[%emt 0:00:12]} gxf6 {[%emt 0:00:55]} 12. Bxb5 {[%emt 0:00:39]} Ba6 {[%emt 0:08:25]} 13. Bxa6 {[%emt 0:02:12]} Rxa6 {[%emt 0:00:08]} 14. Qd3 {[%emt 0:00:20]} Ra8 {[%emt 0:01:17]} 15. O-O {[%emt 0:00:37]} f5 {[%emt 0:05:02]} 16. c3 {[%emt 0:07:00]} Rg8 {[%emt 0:03:28]} 17. Rfd1 {[%emt 0:02:51]} Qb7 {[%emt 0:01:03]} 18. g3 {[%emt 0:04:08]} d6 {[%emt 0:06:16]} 19. Nd4 {[%emt 0:02:03]} Nxd4 {[%emt 0:01:47]} 20. Qxd4 {[%emt 0:04:45]} bxc3 {[%emt 0:01:56]} 21. Qxc3 {[%emt 0:00:30]} Rc8 {[%emt 0:00:53]} 22. Qd2 {[%emt 0:04:23]} Be7 {[%emt 0:04:19]} 23. Rdc1 {[%emt 0:05:44]} Kd7 {[%emt 0:02:16]} 24. b4 {[%emt 0:05:39]} h5 {[%emt 0:04:14]} 25. Qd4 {[%emt 0:05:05]} h4 {[%emt 0:02:11]} 26. Rxc8 {[%emt 0:00:54]} Rxc8 {[%emt 0:00:11]} 27. Rc1 {[%emt 0:03:27]} h3 {[%emt 0:01:41]} 28. Qb2 {[%emt 0:00:30]} Bf6 0-1

[Event "POL-chT 2 Liga 2019"]
[Site "Poronin"]
[Date "2019.09.14"]
[Round "8.12"]
[White "Dmochowska, Agnieszka"]
[Black "Starosta, Martyna"]
[Result "0-1"]
[ECO "C60"]
[WhiteElo "2110"]
[BlackElo "1814"]
[Annotator "NA"]
[PlyCount "50"]
[EventDate "2019.09.07"]
[EventType "team-tourn"]
[EventCountry "POL"]
[SourceTitle "playchess.com"]
[Source "ChessBase"]
[SourceQuality "1"]
[TimeControl "40/5400+30:1800+30"]

1. e4 {[%emt 0:00:00]} e5 {[%emt 0:00:00]} 2. Nf3 {[%emt 0:00:00]} Nc6 {[%emt 0:00:00]} 3. Bb5 {[%emt 0:00:00]} g6 {[%emt 0:00:00]} 4. d4 {[%emt 0:00:20]} exd4 {[%emt 0:01:22]} 5. c3 {[%emt 0:00:29]} dxc3 {[%emt 0:02:03]} 6. Nxc3 {[%emt 0:00:10]} a6 {[%emt 0:01:41]} 7. Bc4 {[%emt 0:06:43]} d6 {[%emt 0:08:14]} 8. Qb3 {[%emt 0:30:56]} Qd7 {[%emt 0:04:03]} 9. Nd5 {[%emt 0:03:22]} Bg7 {[%emt 0:01:20]} 10. Bg5 {[%emt 0:00:57]} h6 {[%emt 0:02:43]} 11. Bh4 {[%emt 0:01:44]} g5 {[%emt 0:04:04]} 12. Bg3 {[%emt 0:06:33]} Nge7 {[%emt 0:04:03]} 13. Nxc7+ {[%emt 0:07:09]} Qxc7 {[%emt 0:03:35]} 14. Bxf7+ {[%emt 0:00:06]} Kd8 {[%emt 0:01:44]} 15. Rd1 {[%emt 0:04:08]} Qa5+ {[%emt 0:03:39]} 16. Ke2 {[%emt 0:10:07]} Ne5 {[%emt 0:21:05]} 17. Rxd6+ {[%emt 0:03:33]} Kc7 {[%emt 0:04:46]} 18. Qc2+ {[%emt 0:11:44]} Kb8 {[%emt 0:01:52]} 19. h3 {[%emt 0:09:35]} Ka7 {[%emt 0:01:29]} 20. a4 {[%emt 0:00:29]} Nxf7 {[%emt 0:01:48]} 21. b4 {[%emt 0:01:26]} Qxb4 {[%emt 0:01:30]} 22. Rb1 {[%emt 0:00:53]} Qc3 {[%emt 0:01:02]} 23. Qd1 {[%emt 0:00:34]} Nxd6 {[%emt 0:04:50]} 24. Qxd6 {[%emt 0:00:08]} Nc6 {[%emt 0:02:11]} 25. Nd2 {[%emt 0:00:47]} Rd8 {[%emt 0:01:29]} 0-1

[Event "POL-chT 2 Liga 2019"]
[Site "Poronin"]
[Date "2019.09.14"]
[Round "8.13"]
[White "Pakleza, Zbigniew"]
[Black "Sieciechowicz, Marcin"]
[Result "1/2-1/2"]
[ECO "D14"]
[WhiteElo "2491"]
[BlackElo "2364"]
[Annotator "ChessBase"]
[PlyCount "92"]
[EventDate "2019.09.07"]
[EventType "team-tourn"]
[EventCountry "POL"]
[SourceTitle "playchess.com"]
[Source "ChessBase"]
[SourceQuality "1"]
[TimeControl "40/5400+30:1800+30"]

1. Nf3 {[%emt 0:00:00]} Nf6 {[%emt 0:00:00]} 2. c4 {[%emt 0:00:00]} c6 {[%emt 0:00:00]} 3. d4 {[%emt 0:00:07]} d5 {[%emt 0:00:00]} 4. cxd5 {[%emt 0:00:09]} cxd5 {[%emt 0:00:00]} 5. Nc3 {[%emt 0:00:04]} Nc6 {[%emt 0:00:06]} 6. Bf4 {[%emt 0:00:09]} Bf5 {[%emt 0:00:25]} 7. Qb3 {[%emt 0:00:08]} Na5 {[%emt 0:00:36]} 8. Qa4+ {[%emt 0:00:05]} Bd7 {[%emt 0:00:13]} 9. Qc2 {[%emt 0:00:02]} e6 {[%emt 0:01:54]} 10. e3 {[%emt 0:00:06]} Rc8 {[%emt 0:01:39]} 11. Bd3 {[%emt 0:01:25]} Be7 {[%emt 0:02:18]} 12. h3 {[%emt 0:01:23]} h6 {[%emt 0:01:16]} 13. O-O {[%emt 0:00:10]} O-O {[%emt 0:01:16]} 14. Rfc1 {[%emt 0:00:40]} Bb4 {[%emt 0:12:19]} 15. Ne5 {[%emt 0:04:46]} Be8 {[%emt 0:04:28]} 16. Qe2 {[%emt 0:14:00]} Nc6 {[%emt 0:02:56]} 17. a3 {[%emt 0:09:51]} Be7 {[%emt 0:07:28]} 18. Rc2 {[%emt 0:06:39]} Nxe5 {[%emt 0:08:15]} 19. Bxe5 {[%emt 0:19:34]} Bc6 {[%emt 0:04:08]} 20. b4 {[%emt 0:04:14]} a6 {[%emt 0:03:58]} 21. Rac1 {[%emt 0:00:32]} Qd7 {[%emt 0:01:42]} 22. Nb1 {[%emt 0:02:50]} Ne4 {[%emt 0:06:15]} 23. Nd2 {[%emt 0:03:58]} Nxd2 {[%emt 0:00:40]} 24. Qxd2 {[%emt 0:00:02]} Bd6 {[%emt 0:01:16]} 25. Bxd6 {[%emt 0:00:30]} Qxd6 {[%emt 0:00:02]} 26. a4 {[%emt 0:01:33]} Bd7 27. Rc5 {[%emt 0:00:16]} b6 {[%emt 0:09:41]} 28. Rxc8 {[%emt 0:02:54]} Rxc8 {[%emt 0:00:35]} 29. Rxc8+ {[%emt 0:01:22]} Bxc8 {[%emt 0:00:01]} 30. Qc3 {[%emt 0:00:12]} Bb7 {[%emt 0:01:19]} 31. a5 {[%emt 0:00:25]} b5 {[%emt 0:01:19]} 32. Qc5 {[%emt 0:00:44]} Qxc5 {[%emt 0:01:10]} 33. dxc5 {[%emt 0:01:28]} Kf8 {[%emt 0:01:46]} 34. f4 {[%emt 0:15:02]} Ke7 {[%emt 0:04:14]} 35. Kf2 {[%emt 0:02:10]} f6 {[%emt 0:01:34]} 36. Bg6 {[%emt 0:00:32]} Bc6 {[%emt 0:01:50]} 37. h4 {[%emt 0:06:55]} Bb7 {[%emt 0:11:32]} 38. g4 {[%emt 0:00:26]} Bc6 {[%emt 0:00:51]} 39. Ke2 {[%emt 0:02:50]} Kd7 {[%emt 0:02:25]} 40. e4 {[%emt 0:00:00]} dxe4 {[%emt 0:00:00]} 41. Ke3 {[%emt 0:00:35]} Ke7 {[%emt 0:09:30]} 42. Bxe4 {[%emt 0:00:15]} Bxe4 {[%emt 0:00:07]} 43. Kxe4 {[%emt 0:00:02]} Kd7 {[%emt 0:01:59]} 44. g5 {[%emt 0:05:13]} Kc7 {[%emt 0:05:26]} 45. Kf3 {[%emt 0:00:10]} h5 {[%emt 0:00:27]} 46. Ke4 {[%emt 0:00:07]} Kc6 {[%emt 0:01:02]} 1/2-1/2